fUST/lending_fUST_20240920
["ID","MTS","AMOUNT","RATE_DAILY","PERIOD"]
[338643486,1726840243230,-500.0,0.00016438,2]
[338643487,1726840243243,-722.61,0.00016438,2]
[338643488,1726840243253,-500.0,0.00016438,2]
[338643489,1726840243262,-500.0,0.00016438,2]
[338643490,1726840243272,-500.0,0.00016438,2]
[338643491,1726840243282,-741.38,0.00016438,2]
[338643492,1726840243291,-500.0,0.00016438,2]
[338643493,1726840243300,-500.0,0.00016438,2]
[338643494,1726840243311,-500.0,0.00016438,2]
[338643495,1726840243322,-500.0,0.00016438,2]
[338643496,1726840243332,-500.0,0.00016438,2]
[338643497,1726840243341,-500.0,0.00016438,2]
[338643498,1726840243351,-542.47029966,0.00016438,2]
[338643499,1726840243361,-874.95,0.00016438,2]
[338643500,1726840243370,-500.0,0.00016438,2]
[338643501,1726840243380,-500.0,0.00016438,2]
[338643502,1726840243389,-500.0,0.00016438,2]
[338643503,1726840243398,-500.0,0.00016438,2]
[338643504,1726840243407,-500.0,0.00016438,2]
[338643505,1726840243416,-845.66,0.00016438,2]
[338643506,1726840243425,-500.0,0.00016438,2]
[338643507,1726840243435,-500.0,0.00016438,2]
[338643508,1726840243444,-459.2973992,0.00016438,2]
[338643509,1726840243454,-784.53,0.00016438,2]
[338643510,1726840243463,-500.0,0.00016438,2]
[338643511,1726840243472,-500.0,0.00016438,2]
[338643512,1726840243481,-500.0,0.00016438,2]
[338643513,1726840243491,-500.0,0.00016438,2]
[338643514,1726840243500,-155.963199,0.00016438,2]
[338643515,1726840243509,-500.0,0.00016438,2]
[338643516,1726840243519,-500.0,0.00016438,2]
[338643517,1726840243528,-500.0,0.00016438,2]
[338643518,1726840243537,-500.0,0.00016438,2]
[338643519,1726840243547,-500.0,0.00016438,2]
[338643520,1726840243556,-500.0,0.00016438,2]
[338643521,1726840243568,-501.20205329,0.00016438,2]
[338643522,1726840243577,-500.0,0.00016438,2]
[338643523,1726840243586,-500.0,0.00016438,2]
[338643524,1726840243596,-500.0,0.00016438,2]
[338643525,1726840243606,-500.0,0.00016438,2]
[338643526,1726840243615,-500.0,0.00016438,2]
[338643527,1726840243624,-500.0,0.00016438,2]
[338643528,1726840243634,-151.0,0.00016438,2]
[338643529,1726840243644,-500.0,0.00016438,2]
[338643530,1726840243654,-500.0,0.00016438,2]
[338643531,1726840243663,-500.0,0.00016438,2]
[338643532,1726840243673,-500.0,0.00016438,2]
[338643533,1726840243683,-500.0,0.00016438,2]
[338643534,1726840243692,-500.0,0.00016438,2]
[338643535,1726840243702,-500.0,0.00016438,2]
[338643536,1726840243711,-151.0,0.00016438,2]
[338643537,1726840243721,-500.0,0.00016438,2]
[338643538,1726840243732,-500.0,0.00016438,2]
[338643539,1726840243742,-500.0,0.00016438,2]
[338643540,1726840243752,-500.0,0.00016438,2]
[338643541,1726840243762,-1101.21,0.00016438,2]
[338643542,1726840243772,-1000.0,0.00016438,2]
[338643543,1726840243785,-707.82,0.00016438,2]
[338643544,1726840243794,-500.0,0.00016438,2]
[338643545,1726840243804,-151.0,0.00016438,2]
[338643546,1726840243816,-151.0,0.00016438,2]
[338643547,1726840243825,-500.0,0.00016438,2]
[338643548,1726840243834,-500.0,0.00016438,2]
[338643549,1726840243844,-203.051101,0.00016438,2]
[338643550,1726840243853,-151.0,0.00016438,2]
[338643551,1726840243863,-500.0,0.00016438,2]
[338643552,1726840243872,-151.0,0.00016438,2]
[338643553,1726840243881,-151.0,0.00016438,2]
[338643554,1726840243891,-500.49680411,0.00016438,2]
[338643555,1726840243900,-500.0,0.00016438,2]
[338643556,1726840243910,-780.87,0.00016438,2]
[338643557,1726840243919,-678.4,0.00016438,2]
[338643558,1726840243928,-500.0,0.00016438,2]
[338643559,1726840243938,-500.0,0.00016438,2]
[338643560,1726840243948,-486.39956229,0.00016438,2]
[338643561,1726840243958,-500.0,0.00016438,2]
[338643562,1726840243967,-500.0,0.00016438,2]
[338643563,1726840243977,-500.0,0.00016438,2]
[338643564,1726840243985,-713.32,0.00016438,2]
[338643565,1726840243995,-432.90604146,0.00016438,2]
[338643566,1726840244005,-500.0,0.00016438,2]
[338643567,1726840244015,-500.0,0.00016438,2]
[338643568,1726840244024,-500.0,0.00016438,2]
[338643569,1726840244034,-500.0,0.00016438,2]
[338643570,1726840244044,-500.0,0.00016438,2]
[338643571,1726840244054,-274.96901099,0.00016438,2]
[338643572,1726840244067,-807.65,0.00016438,2]
[338643573,1726840244076,-500.0,0.00016438,2]
[338643574,1726840244085,-500.0,0.00016438,2]
[338643575,1726840244095,-1170.96,0.00016438,2]
[338643576,1726840244104,-500.0,0.00016438,2]
[338643577,1726840244114,-500.0,0.00016438,2]
[338643578,1726840244123,-512.42,0.00016438,2]
[338643579,1726840244133,-151.0,0.00016438,2]
[338643580,1726840244142,-151.0,0.00016438,2]
[338643581,1726840244151,-550.69,0.00016438,2]
[338643582,1726840244160,-151.0,0.00016438,2]
[338643583,1726840244170,-500.0,0.00016438,2]
[338643584,1726840244179,-151.0,0.00016438,2]
[338643585,1726840244188,-151.0,0.00016438,2]
[338643586,1726840244198,-500.0,0.00016438,2]
[338643587,1726840244208,-151.0,0.00016438,2]
[338643588,1726840244218,-637.75,0.00016438,2]
[338643589,1726840244228,-500.0,0.00016438,2]
[338643590,1726840244239,-500.0,0.00016438,2]
[338643591,1726840244250,-500.0,0.00016438,2]
[338643592,1726840244260,-500.0,0.00016438,2]
[338643593,1726840244269,-1084.7,0.00016438,2]
[338643594,1726840244280,-500.0,0.00016438,2]
[338643595,1726840244289,-551.08195047,0.00016438,2]
[338643596,1726840244299,-500.0,0.00016438,2]
[338643597,1726840244311,-500.0,0.00016438,2]
[338643598,1726840244321,-500.0,0.00016438,2]
[338643599,1726840244331,-500.0,0.00016438,2]
[338643600,1726840244341,-500.0,0.00016438,2]
[338643601,1726840244350,-500.0,0.00016438,2]
[338643602,1726840244359,-500.0,0.00016438,2]
[338643603,1726840244368,-500.0,0.00016438,2]
[338643604,1726840244378,-500.0,0.00016438,2]
[338643605,1726840244387,-500.0,0.00016438,2]
[338643606,1726840244397,-500.0,0.00016438,2]
[338643607,1726840244406,-500.0,0.00016438,2]
[338643608,1726840244416,-500.0,0.00016438,2]
[338643609,1726840244425,-500.0,0.00016438,2]
[338643610,1726840244435,-500.0,0.00016438,2]
[338643611,1726840244444,-500.0,0.00016438,2]
[338643612,1726840244453,-500.0,0.00016438,2]
[338643613,1726840244463,-500.0,0.00016438,2]
[338643614,1726840244472,-500.0,0.00016438,2]
[338643615,1726840244481,-835.97,0.00016438,2]
[338643616,1726840244491,-500.0,0.00016438,2]
[338643617,1726840244500,-500.0,0.00016438,2]
[338643618,1726840244509,-500.0,0.00016438,2]
[338643619,1726840244519,-500.0,0.00016438,2]
[338643620,1726840244528,-539.24,0.00016438,2]
[338643621,1726840244537,-58932.27,0.00016438,2]
[338643622,1726840244546,-500.0,0.00016438,2]
[338643623,1726840244556,-500.0,0.00016438,2]
[338643624,1726840244570,-500.0,0.00016438,2]
[338643625,1726840244579,-1264.72,0.00016438,2]
[338643626,1726840244588,-553.68,0.00016438,2]
[338643627,1726840244598,-500.0,0.00016438,2]
[338643628,1726840244606,-151.0,0.00016438,2]
[338643629,1726840244616,-167.338077,0.00016438,2]
[338643630,1726840244625,-500.0,0.00016438,2]
[338643631,1726840244634,-500.0,0.00016438,2]
[338643632,1726840244643,-500.0,0.00016438,2]
[338643633,1726840244652,-500.0,0.00016438,2]
[338643634,1726840244661,-500.28808751,0.00016438,2]
[338643635,1726840244670,-151.0,0.00016438,2]
[338643636,1726840244680,-8334.76,0.00016438,2]
[338643637,1726840244690,-827.5,0.00016438,2]
[338643638,1726840244700,-500.0,0.00016438,2]
[338643639,1726840244710,-719.41,0.00016438,2]
[338643640,1726840244721,-500.0,0.00016438,2]
[338643641,1726840244732,-500.0,0.00016438,2]
[338643642,1726840244742,-500.7574108,0.00016438,2]
[338643643,1726840244752,-500.0,0.00016438,2]
[338643644,1726840244762,-1597.72,0.00016438,2]
[338643645,1726840244771,-500.0,0.00016438,2]
[338643646,1726840244780,-500.0,0.00016438,2]
[338643647,1726840244789,-501.00989565,0.00016438,2]
[338643648,1726840244799,-500.0,0.00016438,2]
[338643649,1726840244809,-500.0,0.00016438,2]
[338643650,1726840244829,-500.0,0.00016438,2]
[338643651,1726840244839,-151.0,0.00016438,2]
[338643652,1726840244848,-500.0,0.00016438,2]
[338643653,1726840244858,-151.0,0.00016438,2]
[338643654,1726840244867,-151.0,0.00016438,2]
[338643655,1726840244875,-500.0,0.00016438,2]
[338643656,1726840244885,-500.0,0.00016438,2]
[338643657,1726840244894,-665.0,0.00016438,2]
[338643658,1726840244903,-500.0,0.00016438,2]
[338643659,1726840244913,-500.0,0.00016438,2]
[338643660,1726840244924,-500.0,0.00016438,2]
[338643661,1726840244934,-500.0,0.00016438,2]
[338643662,1726840244943,-500.0,0.00016438,2]
[338643663,1726840244952,-761.04,0.00016438,2]
[338643664,1726840244961,-470.48651463,0.00016438,2]
[338643671,1726840245779,-500.0,0.00016391,2]
[338643672,1726840245790,-350.0,0.00016391,2]
[338643673,1726840245800,-29.51348537,0.00016438,2]
[338643674,1726840245812,-624.69,0.00016438,2]
[338643675,1726840245821,-500.0,0.00016438,2]
[338643676,1726840245830,-500.0,0.00016438,2]
[338643677,1726840245840,-708.33,0.00016438,2]
[338643678,1726840245850,-158.98634429,0.00016438,2]
[338643679,1726840245859,-219.92,0.00016438,2]
[338643680,1726840245868,-500.0,0.00016438,2]
[338643681,1726840245877,-500.0,0.00016438,2]
[338643682,1726840245886,-500.0,0.00016438,2]
[338643683,1726840245896,-500.0,0.00016438,2]
[338643684,1726840245905,-55.30332329,0.00016438,2]
[338643699,1726840797869,-300.0,0.00015186,2]
[338643700,1726840797893,-300.0,0.00015186,2]
[338643701,1726840797915,-10688.5913097,0.00015187,2]
[338643702,1726840797938,-5989.32504009,0.00015329,2]
[338643703,1726840797962,-24900.0,0.00015364,2]
[338643704,1726840797985,-170.096678,0.00015429,2]
[338643705,1726840798017,-170.096678,0.00015519,2]
[338643706,1726840798040,-170.096678,0.00015608,2]
[338643707,1726840798063,-170.096678,0.00015697,2]
[338643708,1726840798087,-170.096678,0.00015787,2]
[338643709,1726840798110,-170.096678,0.00015876,2]
[338643710,1726840798134,-170.096678,0.00015965,2]
[338643711,1726840798158,-1631.40690421,0.00016,2]
[338643735,1726841370907,156.37,0.00014013,2]
[338643774,1726841431863,-161.694475,0.00014826,2]
[338643775,1726841431873,-161.694475,0.0001498,2]
[338643776,1726841431882,-161.694475,0.00015135,2]
[338643777,1726841431896,-300.0,0.0001515,2]
[338643778,1726841431905,-22.90470839,0.0001515,2]
[338643779,1726841431917,-277.09529161,0.0001515,2]
[338643780,1726841431928,-571.67579927,0.00015151,2]
[338643781,1726841431941,-7908.00935503,0.00015151,2]
[338643848,1726841437997,-7621.29543073,0.00015151,2]
[338643849,1726841438007,-24900.0,0.00015236,2]
[338643850,1726841438016,-164.113666,0.00015251,2]
[338643851,1726841438026,-161.694475,0.00015289,2]
[338643852,1726841438043,-161.694475,0.00015444,2]
[338643853,1726841438052,-161.694475,0.00015598,2]
[338643854,1726841438062,-368.59309579,0.00016,2]
[338643855,1726841438071,-500.0,0.00016045,7]
[338643856,1726841438080,-500.0,0.00016045,7]
[338643857,1726841438090,-500.0,0.00016045,7]
[338643858,1726841438099,-500.0,0.00016045,7]
[338643859,1726841438110,-500.0,0.00016045,7]
[338643860,1726841438120,-500.0,0.00016045,7]
[338643861,1726841438129,-500.0,0.00016045,7]
[338643862,1726841438139,-500.0,0.00016045,7]
[338643863,1726841438150,-432.65,0.00016045,7]
[338643864,1726841438159,-500.0,0.00016045,2]
[338643865,1726841438170,-417.675585,0.000161,2]
[338643866,1726841438180,-153.0,0.000162,2]
[338643867,1726841438189,-417.675585,0.000162,2]
[338643868,1726841438198,-154.79661188,0.00016234,2]
[338643869,1726841438208,-500.0,0.00016289,2]
[338643870,1726841438217,-208.74914789,0.00016289,2]
[338643871,1726841438226,-500.0,0.00016289,2]
[338643872,1726841438236,-500.0,0.00016289,2]
[338643873,1726841438245,-500.0,0.00016289,2]
[338643874,1726841438255,-500.0,0.00016289,2]
[338643875,1726841438264,-500.0,0.00016289,2]
[338643876,1726841438273,-500.0,0.00016289,2]
[338643877,1726841438291,-500.0,0.00016289,2]
[338643878,1726841438300,-500.0,0.00016289,2]
[338643879,1726841438309,-410.71452452,0.00016289,2]
[338643880,1726841438319,-295.52296976,0.00016289,2]
[338643881,1726841438328,-500.0,0.00016289,2]
[338643882,1726841438343,-500.0,0.00016289,2]
[338643883,1726841438352,-500.0,0.00016289,2]
[338643884,1726841438362,-483.04634248,0.00016289,2]
[338643885,1726841438372,-246.25095654,0.00016289,2]
[338643886,1726841438381,-500.0,0.00016289,2]
[338643887,1726841438391,-500.0,0.00016289,2]
[338643888,1726841438401,-500.0,0.00016289,2]
[338643889,1726841438410,-361.64183528,0.00016289,2]
[338643890,1726841438420,-500.0,0.00016289,2]
[338643891,1726841438430,-500.0,0.00016289,2]
[338643892,1726841438440,-500.0,0.00016289,2]
[338643893,1726841438449,-500.0,0.00016289,2]
[338643894,1726841438459,-500.0,0.00016289,2]
[338643895,1726841438468,-500.0,0.00016289,2]
[338643896,1726841438477,-500.0,0.00016289,2]
[338643897,1726841438486,-500.0,0.00016289,2]
[338643898,1726841438496,-500.0,0.00016289,2]
[338643899,1726841438506,-500.0,0.00016289,2]
[338643900,1726841438516,-500.0,0.00016289,2]
[338643901,1726841438526,-500.0,0.00016289,2]
[338643902,1726841438543,-500.0,0.00016289,2]
[338643903,1726841438552,-341.06516252,0.00016289,2]
[338643904,1726841438561,-500.0,0.00016289,2]
[338643905,1726841438571,-500.0,0.00016289,2]
[338643906,1726841438581,-500.0,0.00016289,2]
[338643907,1726841438590,-500.0,0.00016289,2]
[338643908,1726841438603,-500.0,0.00016289,2]
[338643909,1726841438612,-348.21023144,0.00016289,2]
[338643910,1726841438623,-500.0,0.00016289,2]
[338643911,1726841438632,-500.0,0.00016289,2]
[338643912,1726841438642,-500.0,0.00016289,2]
[338643913,1726841438651,-500.0,0.00016289,2]
[338643914,1726841438661,-500.0,0.00016289,2]
[338643915,1726841438670,-500.0,0.00016289,2]
[338643916,1726841438680,-500.0,0.00016289,2]
[338643917,1726841438691,-500.0,0.00016289,2]
[338643918,1726841438701,-500.0,0.00016289,2]
[338643919,1726841438710,-500.0,0.00016289,2]
[338643920,1726841438719,-500.0,0.00016289,2]
[338643921,1726841438728,-500.0,0.00016289,2]
[338643922,1726841438737,-500.0,0.00016289,2]
[338643923,1726841438746,-500.0,0.00016289,2]
[338643924,1726841438756,-500.0,0.00016289,2]
[338643925,1726841438764,-500.0,0.00016289,2]
[338643926,1726841438773,-500.0,0.00016289,2]
[338643927,1726841438787,-1024.75430339,0.0001629,2]
[338643928,1726841438796,-93080.27669565,0.0001629,2]
[338643929,1726841439042,-6313.3106602,0.0001629,2]
[338643930,1726841439054,-255737.41148415,0.0001629,2]
[338643931,1726841439064,-1000.0,0.000163,2]
[338643932,1726841439073,-184.86696316,0.000163,2]
[338643933,1726841439082,-1000.0,0.00016304,2]
[338643934,1726841439092,-1187.14055924,0.00016306,2]
[338643935,1726841439101,-184.86696316,0.00016306,2]
[338643936,1726841439110,-8220.62910634,0.00016338,2]
[338643937,1726841439121,-524.0,0.00016358,2]
[338643938,1726841439131,-1216.0,0.00016358,2]
[338643939,1726841439141,-7139.2745635,0.00016382,2]
[338643940,1726841439152,-230.4982434,0.00016391,2]
[338643941,1726841439162,-500.0,0.00016391,2]
[338643942,1726841439171,-525.48984763,0.00016391,2]
[338643943,1726841439181,-500.0,0.00016391,2]
[338643944,1726841439191,-500.0,0.00016391,2]
[338643945,1726841439200,-163.35176067,0.00016391,2]
[338643946,1726841439210,-500.0,0.00016391,2]
[338643947,1726841439220,-500.0,0.00016391,2]
[338643948,1726841439229,-500.0,0.00016391,2]
[338643949,1726841439239,-500.0,0.00016391,2]
[338643950,1726841439249,-500.0,0.00016391,2]
[338643951,1726841439258,-500.0,0.00016391,2]
[338643952,1726841439268,-500.0,0.00016391,2]
[338643953,1726841439277,-500.0,0.00016391,2]
[338643954,1726841439289,-500.0,0.00016391,2]
[338643955,1726841439298,-500.0,0.00016391,2]
[338643956,1726841439307,-70532.44660346,0.00016393,5]
[338643957,1726841439317,-240375.156811,0.00016393,2]
[338643958,1726841439328,-14395.4399944,0.00016393,2]
[338643959,1726841439338,-60093.7892027,0.00016395,2]
[338643960,1726841439347,-7197.7199972,0.00016395,2]
[338643961,1726841439357,-10796.5799958,0.00016395,2]
[338643962,1726841439367,-10796.5799958,0.00016396,2]
[338643963,1726841439378,-3598.8599986,0.00016397,2]
[338643964,1726841439387,-150.112233,0.000164,2]
[338643965,1726841439397,-1000.0,0.000164,2]
[338643966,1726841439407,-150.112233,0.000164,2]
[338643967,1726841439416,-150.112233,0.000164,2]
[338643968,1726841439426,-150.112233,0.000164,2]
[338643969,1726841439435,-154.346597,0.000164,2]
[338643971,1726841439445,-3000.0,0.000164,2]
[338643972,1726841439454,-150.112233,0.000164,2]
[338643973,1726841439464,-150.112234,0.000164,2]
[338643974,1726841439473,-151.0,0.00016406,2]
[338643975,1726841439483,-151.0,0.00016406,2]
[338643976,1726841439492,-151.0,0.00016406,2]
[338643977,1726841439502,-254.966097,0.00016406,2]
[338643978,1726841439513,-378.344378,0.00016406,2]
[338643979,1726841439523,-378.344378,0.00016406,2]
[338643980,1726841439535,-276.444829,0.00016406,2]
[338643981,1726841439545,-151.0,0.00016406,2]
[338643982,1726841439555,-151.0,0.00016406,2]
[338643983,1726841439564,-151.0,0.00016406,2]
[338643984,1726841439574,-151.0,0.00016406,2]
[338643986,1726841439583,-151.0,0.00016406,2]
[338643988,1726841439595,-462.298068,0.00016406,2]
[338643990,1726841439606,-462.298068,0.00016406,2]
[338643991,1726841439616,-462.298068,0.00016406,2]
[338643992,1726841439625,-462.298068,0.00016406,2]
[338643993,1726841439635,-151.0,0.00016406,2]
[338643994,1726841439645,-151.0,0.00016406,2]
[338643995,1726841439654,-151.0,0.00016406,2]
[338643996,1726841439664,-151.0,0.00016406,2]
[338643997,1726841439676,-151.0,0.00016407,2]
[338643998,1726841439685,-151.0,0.00016407,2]
[338643999,1726841439695,-378.344378,0.00016407,2]
[338644000,1726841439704,-378.344378,0.00016407,2]
[338644001,1726841439713,-151.0,0.00016407,2]
[338644002,1726841439722,-151.0,0.00016407,2]
[338644003,1726841439732,-151.0,0.00016407,2]
[338644004,1726841439742,-7197.7199972,0.00016408,2]
[338644005,1726841439751,-3000.0,0.0001641,2]
[338644006,1726841439761,-278.459532,0.00016415,2]
[338644008,1726841439771,-278.459532,0.00016415,2]
[338644010,1726841439782,-165.263601,0.00016415,2]
[338644012,1726841439792,-165.263601,0.00016415,2]
[338644013,1726841439802,-278.459532,0.00016415,2]
[338644014,1726841439812,-278.459532,0.00016415,2]
[338644015,1726841439823,-165.263601,0.00016415,2]
[338644017,1726841439833,-165.263601,0.00016415,2]
[338644026,1726841440029,-462.298068,0.00016415,2]
[338644027,1726841440041,-462.298068,0.00016415,2]
[338644028,1726841440051,-151.0,0.00016415,2]
[338644029,1726841440061,-151.0,0.00016415,2]
[338644030,1726841440070,-151.0,0.00016417,2]
[338644031,1726841440080,-474.968286,0.00016417,2]
[338644032,1726841440091,-474.968286,0.00016417,2]
[338644033,1726841440100,-272.764442,0.00016417,2]
[338644034,1726841440109,-272.764442,0.00016417,2]
[338644035,1726841440119,-151.0,0.00016417,2]
[338644036,1726841440128,-151.0,0.00016417,2]
[338644037,1726841440137,-151.0,0.00016417,2]
[338644038,1726841440146,-151.0,0.00016417,2]
[338644039,1726841440155,-151.0,0.00016418,2]
[338644040,1726841440165,-151.0,0.00016418,2]
[338644041,1726841440174,-378.344378,0.00016418,2]
[338644042,1726841440184,-378.344378,0.00016418,2]
[338644043,1726841440194,-151.0,0.00016418,2]
[338644044,1726841440204,-151.0,0.00016418,2]
[338644045,1726841440216,-154.742121,0.00016418,2]
[338644046,1726841440226,-1426.369,0.0001642,2]
[338644047,1726841440236,-191.12889684,0.0001642,2]
[338644048,1726841440246,-3000.0,0.0001642,2]
[338644049,1726841440255,-3598.8599986,0.00016428,2]
[338644050,1726841440264,-151.0,0.00016428,2]
[338644051,1726841440275,-158.05926,0.00016428,2]
[338644052,1726841440288,-151.0,0.00016428,2]
[338644053,1726841440298,-300.525759,0.00016428,2]
[338644054,1726841440307,-151.0,0.00016428,2]
[338644055,1726841440317,-151.0,0.00016428,2]
[338644056,1726841440329,-151.0,0.00016428,2]
[338644057,1726841440338,-151.0,0.00016428,2]
[338644058,1726841440350,-151.0,0.00016428,2]
[338644059,1726841440360,-151.0,0.00016428,2]
[338644060,1726841440370,-151.0,0.00016428,2]
[338644061,1726841440381,-162.117975,0.00016428,2]
[338644062,1726841440391,-151.0,0.00016428,2]
[338644063,1726841440401,-151.0,0.00016428,2]
[338644064,1726841440412,-14395.4399944,0.00016428,2]
[338644065,1726841440422,-3000.0,0.0001643,2]
[338644066,1726841440432,-161.81281085,0.00016437,2]
[338644067,1726841440443,-12090.48436948,0.00016438,5]
[338644068,1726841440757,-522.0569983,0.00016438,5]
[338644069,1726841440773,-43392.80708664,0.00016438,5]
[338644070,1726841440787,-500.0,0.00016438,2]
[338644071,1726841440796,-500.0,0.00016438,2]
[338644072,1726841440806,-500.48124968,0.00016438,2]
[338644073,1726841440815,-500.0,0.00016438,2]
[338644074,1726841440824,-500.30099658,0.00016438,2]
[338644075,1726841440833,-500.0,0.00016438,2]
[338644076,1726841440842,-500.0,0.00016438,2]
[338644077,1726841440852,-500.0,0.00016438,2]
[338644078,1726841440861,-500.0,0.00016438,2]
[338644079,1726841440870,-500.0,0.00016438,2]
[338644080,1726841440879,-500.0,0.00016438,2]
[338644081,1726841440888,-509.69787273,0.00016438,2]
[338644082,1726841440897,-500.0,0.00016438,2]
[338644083,1726841440906,-500.0,0.00016438,2]
[338644084,1726841440916,-500.0,0.00016438,2]
[338644085,1726841440926,-500.0,0.00016438,2]
[338644086,1726841440935,-500.0,0.00016438,2]
[338644087,1726841440944,-502.54875055,0.00016438,2]
[338644088,1726841440953,-500.0,0.00016438,2]
[338644089,1726841440962,-500.0,0.00016438,2]
[338644090,1726841440971,-500.0,0.00016438,2]
[338644091,1726841440979,-500.0,0.00016438,2]
[338644092,1726841440988,-500.0,0.00016438,2]
[338644093,1726841440997,-500.0,0.00016438,2]
[338644094,1726841441007,-151.0,0.00016438,2]
[338644095,1726841441016,-501.58793847,0.00016438,2]
[338644096,1726841441025,-151.0,0.00016438,2]
[338644097,1726841441037,-151.0,0.00016438,2]
[338644098,1726841441046,-500.0,0.00016438,2]
[338644099,1726841441055,-500.0,0.00016438,2]
[338644100,1726841441065,-500.0,0.00016438,2]
[338644101,1726841441074,-500.0,0.00016438,2]
[338644102,1726841441083,-500.0,0.00016438,2]
[338644103,1726841441092,-500.0,0.00016438,2]
[338644104,1726841441101,-500.0,0.00016438,2]
[338644105,1726841441111,-500.0,0.00016438,2]
[338644106,1726841441120,-644.8004649,0.00016438,2]
[338644107,1726841441129,-500.0,0.00016438,2]
[338644108,1726841441139,-500.0,0.00016438,2]
[338644109,1726841441148,-500.0,0.00016438,2]
[338644110,1726841441157,-500.0,0.00016438,2]
[338644111,1726841441166,-500.0,0.00016438,2]
[338644112,1726841441175,-500.0,0.00016438,2]
[338644113,1726841441189,-500.0,0.00016438,2]
[338644114,1726841441203,-500.0,0.00016438,2]
[338644115,1726841441217,-500.0,0.00016438,2]
[338644116,1726841441230,-500.0,0.00016438,2]
[338644117,1726841441241,-476.64480883,0.00016438,2]
[338644118,1726841441255,-500.0,0.00016438,2]
[338644119,1726841441267,-500.0,0.00016438,2]
[338644120,1726841441279,-500.0,0.00016438,2]
[338644121,1726841441293,-500.0,0.00016438,2]
[338644122,1726841441306,-500.0,0.00016438,2]
[338644123,1726841441319,-500.0,0.00016438,2]
[338644124,1726841441334,-500.0,0.00016438,2]
[338644125,1726841441347,-500.0,0.00016438,2]
[338644126,1726841441360,-500.0,0.00016438,2]
[338644127,1726841441371,-500.0,0.00016438,2]
[338644128,1726841441383,-500.0,0.00016438,2]
[338644129,1726841441395,-500.0,0.00016438,2]
[338644130,1726841441408,-500.0,0.00016438,2]
[338644131,1726841441421,-500.0,0.00016438,2]
[338644132,1726841441433,-500.0,0.00016438,2]
[338644133,1726841441443,-500.0,0.00016438,2]
[338644134,1726841441454,-500.0,0.00016438,2]
[338644135,1726841441466,-500.0,0.00016438,2]
[338644136,1726841441478,-500.0,0.00016438,2]
[338644137,1726841441491,-162.90486281,0.00016438,2]
[338644138,1726841441504,-500.0,0.00016438,2]
[338644139,1726841441516,-500.0,0.00016438,2]
[338644140,1726841441529,-500.0,0.00016438,2]
[338644141,1726841441550,-500.0,0.00016438,2]
[338644142,1726841441563,-500.0,0.00016438,2]
[338644143,1726841441575,-500.0,0.00016438,2]
[338644144,1726841441585,-500.0,0.00016438,2]
[338644145,1726841441598,-500.0,0.00016438,2]
[338644146,1726841441608,-526.91,0.00016438,2]
[338644147,1726841441620,-500.0,0.00016438,2]
[338644148,1726841441634,-289.2263494,0.00016438,2]